Cogmind - Beta 15 @@@ ROGUE MODE // 2025.06.20 @ 16:32:14 Player: Oldman Pu Result: Destroyed by GS-FTB(R) with Subdweller Machine Gun Performance ------------- Evolutions (0) 0 Regions Visited (2) 400 Robots Destroyed (28) 140 Value Destroyed (847) 847 Prototype IDs (2) 40 Alien Tech Used (0) 0 Bonus (0) 0 TOTAL SCORE: 1427 Bonus ------- None Cogmind --------- Core Integrity 0/250 Matter 285/300 Energy 100/100 System Corruption 2% Temperature Cool (0) Movement Rolling (107) Ox1 Location -10/Subcaves Parts ------- > --- POWER (1) -------- (None) > --- PROPULSION (2) --- Wheel Subdweller Monowheel > --- UTILITY (2) ------ Heat Sink High-capacity Storage Unit > --- WEAPON (2) ------- Subdweller Laser Battle Rifle > --- INVENTORY (20) --- Subdweller Monowheel Large Matter Pod (150) Power Shielding Propulsion Shielding Propulsion Shielding Subdweller Laser Subdweller Laser Subdweller Laser Light Assault Rifle Battle Rifle Subdweller Machine Gun Subdweller Machine Gun Subdweller Machine Gun Improved Light Cannon Improved Light Cannon Peak State ------------ > --- POWER ------------ Ion Engine > --- PROPULSION ------- Wheel Subdweller Monowheel > --- UTILITY ---------- Heat Sink High-capacity Storage Unit > --- WEAPON ----------- Subdweller Laser Battle Rifle > --- INVENTORY -------- Subdweller Monowheel Large Matter Pod Power Shielding Propulsion Shielding Propulsion Shielding Subdweller Laser Subdweller Laser Light Assault Rifle Battle Rifle Subdweller Machine Gun Subdweller Machine Gun Improved Light Cannon Improved Light Cannon [Rating: 12] Favorites ----------- Power Ion Engine Engine Ion Engine Propulsion Wheel Wheel Wheel Utility High-capacity Storage Unit Device Heat Sink Storage High-capacity Storage Unit Hackware Hacking Suite Protection Propulsion Shielding Weapon Medium Laser Energy Gun Medium Laser Ballistic Gun Assault Rifle Ballistic Cannon Improved Light Cannon Build | -11 -10 -10 ------- Run | Yrd Mat Sub Slots Evolved . | . . . Power . | . . . Propulsion . | . . . Utility . | . . . Weapon . | . . . Parts Attached 27 | 6 13 8 Power 4 | 1 2 1 Engine 4 | 1 2 1 Core . | . . . Reactor . | . . . Propulsion 8 | 2 4 2 Treads . | . . . Leg . | . . . Wheel 8 | 2 4 2 Hover . | . . . Flight . | . . . Utility 5 | 1 4 . Device 1 | . 1 . Storage 2 | 1 1 . Processor . | . . . Hackware 1 | . 1 . Protection 1 | . 1 . Artifact . | . . . Weapon 10 | 2 3 5 Energy Gun 2 | 1 . 1 Energy Cannon . | . . . Ballistic Gun 5 | 1 1 3 Ballistic Cannon 3 | . 2 1 Launcher . | . . . Special Weapon . | . . . Impact Weapon . | . . . Slashing Weapon . | . . . Piercing Weapon . | . . . Special Melee Weapon . | . . . Unidentified Prototypes . | . . . Parts Lost 13 | . 8 5 Power 3 | . 2 1 Propulsion 6 | . 4 2 Utility . | . . . Weapon 4 | . 2 2 Highest Loss Streak 3 | . 3 3 To Critical Strikes . | . . . Average Backups 9 | . 9 9 Power . | . . . Propulsion 1 | . 2 . Utility 2 | . 2 3 Weapon 4 | . 3 5 Tool/Special . | . . . Unused Backups 12 | . 1 11 Power . | . . . Propulsion 2 | . 1 1 Utility 3 | . . 3 Weapon 7 | . . 7 Tool/Special . | . . . Average Slot Usage (%) 95 | . 94 95 Engine 10 | . 10 10 Wheel 27 | . 27 27 Device 9 | . 6 14 Storage 14 | . 14 14 Protection 3 | . 6 . Energy Gun 7 | . 10 4 Ballistic Gun 12 | . 8 16 Ballistic Cannon 7 | . 8 7 Peak Build Rating 12 | 6 10 12 Average Rating 8 | 4 8 9 On Entrance 4 | . 6 8 Naked Turns . | . . . Heaviest Build 54 | 13 52 54 Greatest Support 30 | 20 20 30 Greatest Overweight (x) 5 | . 4 5 Average Overweight (x) 1 | . 1 1 Largest Inventory Capacity 20 | 8 20 20 Average Capacity 19 | 6 19 20 Most Carried 15 | 1 12 15 Average Carried 9 | . 9 9 Final Capacity 20 | 8 20 20 Final Carried 15 | 1 9 15 Class Distribution -------------------- 89% | Mutant 10% | Scavenger-Mutant Dominant Class ---------------- Mutant | -10/Materials Mutant | -10/Subcaves Resources | -11 -10 -10 ----------- Run | Yrd Mat Sub Matter Collected 1093 | 223 598 272 Remotely . | . . . Salvage Created 939 | . 663 276 Parts 52 | . 38 14 Haulers Intercepted 1 | . 1 . Recyclers Shooed . | . . . Parts Field Recycled . | . . . Retrieved Matter . | . . . Parts Self-Destructed 4 | . . 4 Prevented . | . . . Kills | -11 -10 -10 ------- Run | Yrd Mat Sub Combat Hostiles Destroyed 20 | . 13 7 Guns 11 | . 7 4 Cannons 9 | . 6 3 Classes Destroyed 7 | . 6 1 Worker 1 | . 1 . Hauler 1 | . 1 . Recycler 1 | . 1 . Operator 2 | . 2 . Watcher 3 | . 3 . Grunt 13 | . 13 . Subdweller 7 | . . 7 Best Kill Streak 3 | . 3 2 Combat Bots Only 2 | . 2 2 Max Kills in Single Turn 1 | . 1 1 Gunslinging . | . . . Exploded . | . . . Melee . | . . . Uniques/NPCs Destroyed . | . . . Combat | -11 -10 -10 -------- Run | Yrd Mat Sub Hostile Shots Fired 132 | . 99 33 Missed 30 | . 26 4 Hits 102 | . 73 29 Projectile 102 | . 73 29 Critical Strikes 1 | . . 1 Damage Taken 1620 | . 996 624 Core 263 | . 182 81 Absorbed by Shields . | . . . Redirected to Shielding 37 | . 37 . Core Remaining (%) 100 | 100 . . Volleys Fired 120 | . 78 42 Largest 2 | . 2 2 Hottest 85 | . 83 85 Shots Fired 235 | . 155 80 Gun 161 | . 110 51 Cannon 74 | . 45 29 Launcher . | . . . Special . | . . . Kinetic 158 | . 86 72 Thermal 77 | . 69 8 Explosive . | . . . Electromagnetic . | . . . Robot Hit Streak 11 | . 11 9 Robot Miss Streak 4 | . 4 2 Penetration Max . | . . . Secondary Targets 1 | . 1 . Max Gunslinging Chain 1 | . 1 . Shots Hit Robots 128 | . 98 30 Core Hits 50 | . 38 12 Critical Kills 1 | . . 1 Critical Parts Destroyed 1 | . 1 . Critical Strikes 11 | . 8 3 Burn 5 | . 5 . Destroy 2 | . 1 1 Blast 4 | . 2 2 Melee Attacks . | . . . Impact . | . . . Slashing . | . . . Piercing . | . . . Sneak Attacks . | . . . Combat Hostiles . | . . . Follow-up Attacks . | . . . Damage Inflicted 1950 | . 1483 467 Guns 1083 | . 821 262 Cannons 867 | . 662 205 Explosions . | . . . Melee . | . . . Ramming . | . . . Kinetic 1326 | . 918 408 Thermal 624 | . 565 59 Explosive . | . . . Electromagnetic . | . . . Impact . | . . . Slashing . | . . . Piercing . | . . . Highest Corruption 2 | . 2 2 Average Corruption 1 | . 1 2 Corruption Purged . | . . . Corruption Blocked . | . . . Effects 21 | . 6 15 Message Errors 6 | . 1 5 Matter Fused 5 | . 3 2 Heat Flow Errors 5 | . 1 4 Energy Discharges 2 | . . 2 Data Loss (major) 2 | . 1 1 Weapon Failures 1 | . . 1 Overload Shots . | . . . Overflow Damage 5 | . 5 . Projectiles 5 | . 5 . Explosions . | . . . Melee . | . . . Knockbacks 11 | . 8 3 Impact . | . . . Kinetic 11 | . 8 3 Secondary . | . . . Self-Inflicted Damage . | . . . Shots . | . . . Rammed . | . . . Targets Rammed . | . . . Kicked . | . . . Crushed . | . . . Highest Temperature 345 | . 345 229 Average Temperature 95 | . 95 102 Received Heat Transfer 492 | . 462 30 Effects 2 | . 2 . Shutdowns 1 | . 1 . Energy Bleed 1 | . 1 . Siege Activations . | . . . Martial Activations . | . . . Shielding Activations . | . . . Robots Disrupted . | . . . Combat Hostiles . | . . . Robots Corrupted . | . . . Combat Hostiles . | . . . Parts Fried . | . . . Impact Corruptions . | . . . Robots Melted . | . . . Combat Hostiles . | . . . Parts Melted 1 | . 1 . Heat Transferred 2110 | . 2035 75 Parts Sabotaged . | . . . Parts Stolen . | . . . Parts Stripped . | . . . Power Chain Reactions . | . . . Alert | -11 -10 -10 ------- Run | Yrd Mat Sub Maximum Alert Level . | . . . Low Security (%) 100 | 100 100 . Level 1 . | . . . Level 2 . | . . . Level 3 . | . . . Level 4 . | . . . Level 5 . | . . . High Security . | . . . Max Security . | . . . Peak Influence 87 | . 87 . Initial . | . . . Average 25 | . 26 . Influence Increases 403 | . 403 . Destroy 0b10 Robot/C 260 | . 260 . Destroy 0b10 Robot/NC 40 | . 40 . Destroy Leader 58 | . 58 . Disable Machine 15 | . 15 . Lose Combat Pursuer 30 | . 30 . Influence Decreases 403 | . 361 42 Entered New Map 21 | . . 21 Time Decay 338 | . 317 21 Lost Part 44 | . 44 . Squads Dispatched 4 | . 4 . Investigation 1 | . 1 . Extermination . | . . . Reinforcement 3 | . 3 . Assault . | . . . Garrison . | . . . Intercept . | . . . Searches Triggered . | . . . Construction Impeded . | . . . Haulers Reinforced . | . . . Active Scanning Responses . | . . . Cargo Convoy Interrupts . | . . . Stealth | -11 -10 -10 --------- Run | Yrd Mat Sub Distress Signals 1 | . 1 . Communications Jammed . | . . . Distress Signals . | . . . Times Spotted 35 | . 25 10 Peak Tracking Total 4 | . 4 2 Tactical Retreats 2 | . 2 . Traps | -11 -10 -10 ------- Run | Yrd Mat Sub Traps Triggered 2 | . 2 . Indirectly . | . . . Trap Hack Attempts . | . . . Triggered . | . . . Disarmed . | . . . Reprogrammed . | . . . Reused . | . . . Traps Extracted . | . . . Installed . | . . . Triggered . | . . . Machines | -11 -10 -10 ---------- Run | Yrd Mat Sub Machines Disabled 1 | . 1 . Max in Single Turn 1 | . 1 . Machines Repaired . | . . . Machines Dismantled . | . . . Machines Sabotaged . | . . . Overloaded Fab Kills . | . . . Hacking | -11 -10 -10 --------- Run | Yrd Mat Sub Machines Accessed 1 | . 1 . Terminals 1 | . 1 . Fabricators . | . . . Repair Stations . | . . . Recycling Units . | . . . Scanalyzers . | . . . Garrison Access . | . . . Total Hacks 6 | . 6 . Successful 4 | . 4 . Failed 2 | . 2 . Catastrophic . | . . . Database Lockouts . | . . . Manual . | . . . Terminals 6 | . 6 . Fabricators . | . . . Repair Stations . | . . . Recycling Units . | . . . Scanalyzers . | . . . Garrison Access . | . . . Terminal Hacks 4 | . 4 . Record 2 | . 2 . Prototype ID Bank 1 | . 1 . Emergency Access Points 1 | . 1 . Fabricator Hacks . | . . . Repair Station Hacks . | . . . Recycling Unit Hacks . | . . . Scanalyzer . | . . . Garrison Access Hacks . | . . . Unauthorized Hacks . | . . . Terminals . | . . . Fabricators . | . . . Repair Stations . | . . . Recycling Units . | . . . Scanalyzers . | . . . Garrison Access . | . . . Data Cores Recovered 1 | . 1 . Used . | . . . Hacking Detections 1 | . 1 . Full Trace Events 1 | . 1 . Feedback Events . | . . . Feedback Blocked . | . . . Robot Schematics Acquired . | . . . Robots Built . | . . . Authchips . | . . . Time . | . . . Total Robot Build Rating . | . . . Part Schematics Acquired . | . . . Parts Built . | . . . Authchips . | . . . Time . | . . . Total Part Build Rating . | . . . Parts Repaired . | . . . Time . | . . . Parts Recycled . | . . . Recycled Matter . | . . . Retrieved Matter . | . . . Retrieved Components . | . . . Parts Scanalyzed . | . . . Part Schematics Acquired . | . . . Parts Damaged . | . . . Bothacking | -11 -10 -10 ------------ Run | Yrd Mat Sub Used RIF Installer . | . . . Robots Hacked . | . . . Non-combat . | . . . Combat . | . . . Robot Hacks Applied . | . . . Relay Couplers Released . | . . . Fabnet Peak Effective % . | . . . Robots Rewired . | . . . Allies Hacked . | . . . Hacks Repelled . | . . . Allies | -11 -10 -10 -------- Run | Yrd Mat Sub Total Allies . | . . . Largest Group . | . . . Highest-Rated Group . | . . . Highest-Rated Ally . | . . . Total Orders . | . . . Ally Attacks . | . . . Total Damage . | . . . Kills . | . . . Allies Corrupted . | . . . Allies Melted . | . . . Intel | -11 -10 -10 ------- Run | Yrd Mat Sub Active Infowar (turns) . | . . . Robot Analysis Total . | . . . Derelict Logs Recovered . | . . . Drone Launches . | . . . Drone Recoveries . | . . . Exploration | -11 -10 -10 ------------- Run | Yrd Mat Sub Turns Passed 2015 | 37 1046 932 Spaces Moved 1374 | 37 669 668 Core 8 | 8 . . Treads . | . . . Legs . | . . . Wheels 1366 | 29 669 668 Hover . | . . . Flight . | . . . Fastest Speed 50 | 50 80 107 Average Speed 107 | 73 108 109 Slowest Speed 155 | 80 140 155 Overloaded Moves . | . . . Propulsion Burnouts . | . . . Robots Hopped . | . . . Potential Cave-ins . | . . . Cave-ins Triggered . | . . . Exploration Rate (%) 50 | 4 92 54 Regions Visited 2 Branch Regions 1 Pre-discovered Areas . | . . . Known Exits Taken . | . . . Unknown Exits Taken 2 | 1 1 . Scrap Searched 3 | . . 3 Spaces Dug . | . . . Terrain Destroyed . | . . . Melee . | . . . Projectile . | . . . AOE . | . . . Terrain Rammed . | . . . Walls Destroyed . | . . . Machines Disabled . | . . . Actions | -11 -10 -10 --------- Run | Yrd Mat Sub Total 1670 | 43 835 792 Wait 120 | . 57 63 Move 1372 | 36 668 668 Hop . | . . . Pick Up 24 | 1 14 9 Fast Attach 11 | 6 4 1 Attach 11 | . 6 5 Detach . | . . . Swap 7 | . 4 3 Drop 5 | . 4 1 Fire 120 | . 78 42 Melee . | . . . Ram . | . . . Kick . | . . . Crush . | . . . Escape Stasis . | . . . Rewire . | . . . Trap . | . . . Miscellaneous . | . . . Route ------- -11/Scrapyard -10/Materials (discovered 6 exits: [*Mat x3] / [*Min x2] / [*Sub]) -10/Subcaves History --------- Turn | Location | Event 8 | -11/Scrapyard | Discovered new exit (range 16) 38 | -11/Scrapyard | Entered Materials 231 | -10/Materials | Discovered new exit (range 14) 308 | -10/Materials | Build established: Mutant 496 | -10/Materials | Lost 3 parts (1p1n1w) 578 | -10/Materials | Discovered new exit (range 7) 643 | -10/Materials | Discovered new exit (range 5) 691 | -10/Materials | Discovered new exit (range 8) 692 | -10/Materials | Core integrity fell below 50% 927 | -10/Materials | Discovered new exit (range 15) 1074 | -10/Materials | Discovered new exit (range 10) 1084 | -10/Materials | Entered Subcaves 1288 | -10/Subcaves | Lost 3 parts (1n2w) 1324 | -10/Subcaves | A swath of the cavern ceiling suddenly collapsed 1782 | -10/Subcaves | Shifting Twisted Machinery released Battle Rifle 1789 | -10/Subcaves | Ambushed by Subdwellers from Twisted Machinery 1790 | -10/Subcaves | Shifting Twisted Machinery released Sub. Laser 1791 | -10/Subcaves | Core integrity fell below 20% 2016 | -10/Subcaves | Destroyed by GS-FTB(R) with Subdweller Machine Gun Last Messages --------------- 01721_ Acquired Sub. Laser. 01723_ Acquired Sub. Monowheel. 01725_ Acquired Battle Rifle. 01726_ Acquired 10 matter. 01733_ Acquired Sub. Laser. 01775_ System corrupted: Heat flow error (+279). Battle Rifle falls loose from the Twisted Machinery. 01789_ P5-MRS(R) emerges from the Twisted Machinery. Sub. Laser falls loose from the Twisted Machinery. 01790_ Ion Engine destroyed. 01793_ E6-2UH(R) destroyed. 01796_ P5-MRS(R) suffers critical hit (Destroy). 01796_ P5-MRS(R) destroyed. 01799_ Acquired 14 matter. 01801_ Acquired Sub. Machine Gun. 01806_ Acquired 3 matter. 01822_ Acquired Sub. Laser. 01901_ 7OXJT ACIBLV9PDN9PQRFIF5SD1Q79YZ:N2 01937_ PZAZZAQDKC#4HIFKB9RHSLDFBO75#CK8Q5C8EVMO 02015_ Sub. Laser shoots sparks and powers down. Map ----- +----------------------------------------------------+ | | | | | | | | | | | | | | | | | ?????????????????????????????????????????????????? | | ?????????????????????????????????????????????????? | | ?????????????????????????????????????????????????? | | ?????????????????????????????????????????????????? | | ?????????????????????????????????????????????????? | | ?????????????????????????????????????????????????? | | ?????????????????????????????????????????????????? | | ?????????????????????????????????????????????????? | | ?????????????????????????????????????????????????? | | ?????????????????????#???????????????????????????? | | ?????????????????????# ??????????????????????????? | | ?????????????????????# ####??????????????????????? | | ??????????????????????" ???????????????????????? | | ??????????????????????## ###?????????????????????? | | ?????????????????????##" " #?????????????????????? | | ????????????????????## ##????????????????????? | | ????????????????????# ###R ##???????????????????? | | ????????????????????# @ #???????????????????? | | ????????????????????# ##??????????????????? | | ?????????????######## ##?????????????????? | | ?????????????# #?????????????????? | | ?????????????## #???????????????? | | ??????????????## ##???????????????? | | ???????????????# #####???????????????? | | ?????????????### ##### ### ##??????????????? | | ????????????## #????#### ##?????????????? | | ????????????# ### #???#### #?????????????? | | ????????????# ######??## #??????????????? | | ???????????## #?????## ##??????????????? | | ???????????# #???### ##???????????????? | | ???????????# #???# ######????????????????? | | ???????????# ##?## ###???????????????????? | | ????# ## ### #???????????????????? | | ???# ######??????????????? | | ?# ## ## ###????????????? | | ##### #### #????????????? | | ? ## ### #???# ##??# #????????????? | | ???#????## ???# ##??## #????????????? | | ?????????# ???# ###### ### #????????????? | | ?????????# ??# ### #?## #????????????? | | ?????????#?? ## ## #??# #????????????? | | ??????????? ## ######?## ##????????????? | +----------------------------------------------------+ Best States ------------- Heat Dissipation 35 Energy Generation 10 Energy Capacity 250 Matter Stores 300 Matter Capacity 300 Sight Range 16 Terrain Scan Density 10 Propulsion Shielding 33 Evasion (%) 44 Offensive Hacking 10 Item Schematics ----------------- None Robot Schematics ------------------ None Fabricated ------------ Nothing Repaired ---------- Nothing Alien Tech Used ----------------- None Achievements -------------- None Challenges ------------ None Game ------ Seed DirectedCentriumFocus Manual? 0 Play Time 00:21:25 Cumulative 303.4 hours Start 2025.06.20 @ 16:15:59 End 2025.06.20 @ 16:32:14 Sessions 1 Manual Loads 0 Difficulty Rogue Special Mode None Game No. 259 Rogue 247 Adventurer 12 Explorer 0 Win Type - Total 1 Types 1/0/0/0/0/0/0/0/0/0 Lore% 32 Gallery% 45 Achievement% 37 Wizard Run 0 Options --------- Layout 1 ASCII 0 Keyboard 0 Movement Mouse Keybinds 0 Fullscreen 1 Font 32/SmallcapsGlow Map View 77x35 Zoom Use 0% Tactical HUD 1 Map Filters NONE Filters NONE Steam 1 RUN: b30caf3b-b093-4932-9bd2-01006c67f205